bitfinex/quotes_SOLUSD_20240622
["timestamp","ask_amount","ask_price","bid_price","bid_amount"]
[1719099184043,26.49,133.92,133.88,7.469]
[1719099184236,20.0,133.92,133.88,6.49]
[1719099184441,20.0,133.92,133.89,7.4685]
[1719099184948,20.0,133.93,133.89,7.4685]
[1719099185125,26.49,133.93,133.89,7.4685]
[1719099185559,33.9567,133.93,133.89,7.4685]
[1719099186760,33.9567,133.93,133.87,112.8943]
[1719099187259,6.49,133.93,133.9,100.0]
[1719099187469,12.8479973,133.95,133.9,106.49]
[1719099187650,19.3379973,133.96,133.9,106.49]
[1719099187859,27.4657,133.95,133.9,106.49]
[1719099188353,27.4657,133.95,133.9,113.9579]
[1719099190353,27.4657,133.95,133.9,106.49]
[1719099190542,27.4657,133.95,133.91,6.49]
[1719099190743,7.4657,133.95,133.91,6.49]
[1719099191843,7.4657,133.95,133.92,1.49182982]
[1719099192740,7.4657,133.95,133.91,6.49]
[1719099193255,26.8074371,133.96,133.91,6.49]
[1719099193442,13.9551,133.96,133.91,6.49]
[1719099193645,13.9554,133.96,133.93,100.0]
[1719099195942,7.4657,133.95,133.91,113.0391]
[1719099196146,13.9557,133.95,133.91,106.5491]
[1719099197240,6.49,133.95,133.91,106.5491]
[1719099197533,13.955,133.96,133.91,106.5491]
[1719099198540,13.955,133.96,133.92,1.14797392]
[1719099198851,13.955,133.96,133.91,106.5491]
[1719099199059,7.4655,133.95,133.91,106.5491]
[1719099199445,13.9551,133.96,133.91,106.5491]
[1719099201555,7.4656,133.95,133.91,106.5491]
[1719099202060,13.9556,133.95,133.91,106.5491]
[1719099204749,6.49,133.95,133.91,106.5491]
[1719099206665,13.9556,133.95,133.91,106.5491]
[1719099208143,6.49,133.95,133.91,106.5491]
[1719099208345,7.4651,133.96,133.91,106.5491]
[1719099208561,6.49,133.95,133.91,106.5491]
[1719099227876,6.49,133.94,133.91,106.5491]
[1719099228876,6.49,133.92,133.9,15.5777]
[1719099229179,6.49,133.91,133.88,6.2571]
[1719099229382,6.49,133.9,133.88,6.2571]
[1719099231769,6.49,133.9,133.88,7.4691]
[1719099232780,6.49,133.91,133.88,7.4691]
[1719099235080,6.49,133.93,133.89,100.0]
[1719099235580,6.49,133.93,133.9,2.65026699]
[1719099236083,6.49,133.93,133.9,10.11826699]
[1719099236285,6.49,133.93,133.9,11.60954893]
[1719099236584,6.49,133.93,133.9,4.14154893]
[1719099237874,6.49,133.92,133.89,107.4685]
[1719099238592,7.4665,133.93,133.89,107.4685]
[1719099238765,6.49,133.92,133.89,107.4685]
[1719099243089,6.49,133.92,133.89,7.4685]
[1719099243285,6.49,133.91,133.87,100.0]
[1719099245082,6.49,133.92,133.88,7.4688]
[1719099246679,13.9574,133.92,133.87,107.4696]
[1719099246887,6.49,133.91,133.87,107.4696]
[1719099248491,6.49,133.91,133.88,7.4693]
[1719099251578,7.4697,133.88,133.86,0.8732376]
[1719099251779,13.9597,133.88,133.86,0.8732376]
[1719099252404,13.9599,133.87,133.86,0.8732376]
[1719099252580,13.9599,133.87,133.82,6.1888]
[1719099252782,6.49,133.86,133.82,13.6613]
[1719099253286,6.49,133.86,133.83,107.4721]
[1719099255600,6.49,133.84,133.83,100.0]
[1719099256402,6.49,133.84,133.82,7.4726]
[1719099256403,6.49,133.84,133.81,107.4731]
[1719099256585,6.49,133.83,133.81,100.0]
[1719099257196,7.4735,133.81,133.76,100.0]
[1719099257393,6.49,133.78,133.76,107.4757]
[1719099257594,7.4735,133.81,133.76,107.476]
[1719099257595,6.49,133.79,133.76,107.476]
[1719099257781,6.49,133.79,133.76,100.0]
[1719099257978,30.0729,133.82,133.76,107.476]
[1719099258307,6.49,133.8,133.76,107.476]
[1719099258483,6.49,133.79,133.76,7.476]
[1719099259098,6.49,133.79,133.75,16.15942935]
[1719099259287,13.9654,133.78,133.75,8.68302935]
[1719099259592,6.49,133.78,133.75,108.68302935]
[1719099259992,6.49,133.78,133.75,108.18302935]
[1719099260190,6.49,133.78,133.75,115.65952935]
[1719099262109,6.49,133.78,133.75,8.18302935]
[1719099262811,6.49,133.78,133.75,108.18302935]
[1719099263005,7.474,133.8,133.75,115.65952935]
[1719099263214,6.49,133.78,133.75,115.65952935]
[1719099264210,6.49,133.78,133.75,108.18302935]
[1719099265287,6.49,133.77,133.75,8.18302935]
[1719099266284,27.4747,133.79,133.75,8.18302935]
[1719099266490,6.49,133.78,133.75,8.18302935]
[1719099266813,27.4747,133.79,133.75,115.65952935]
[1719099267000,6.49,133.78,133.75,115.65952935]
[1719099267321,6.49,133.78,133.75,8.18302935]
[1719099268893,6.49,133.78,133.75,115.65942935]
[1719099270801,20.0,133.79,133.77,100.0]
[1719099271014,6.49,133.79,133.77,100.0]
[1719099271318,13.9648,133.79,133.75,8.18302935]
[1719099271507,13.965,133.78,133.75,8.18302935]
[1719099272118,6.49,133.77,133.75,8.18302935]
[1719099275814,6.49,133.76,133.75,8.18302935]
[1719099276012,14.9531,133.8,133.75,15.65952935]
[1719099276213,6.49,133.77,133.75,15.65952935]
[1719099277633,7.4744,133.79,133.75,15.65952935]
[1719099277813,6.49,133.77,133.75,15.65952935]
[1719099278129,6.49,133.77,133.75,8.18302935]
[1719099278697,7.4744,133.79,133.75,8.18302935]
[1719099278924,6.49,133.77,133.75,8.18302935]
[1719099280924,6.49,133.76,133.75,8.18302935]
[1719099296621,14.306,133.76,133.75,8.18302935]
[1719099296820,79.306,133.76,133.75,8.18302935]
[1719099297448,7.4777,133.73,133.72,0.8732376]
[1719099297617,7.4777,133.73,133.66,11.09747956]
[1719099297618,67.7448,133.73,133.66,3.61617956]
[1719099297943,6.49,133.68,133.67,107.4811]
[1719099298236,7.4788,133.71,133.67,100.0]
[1719099298427,6.49,133.68,133.67,100.0]
[1719099298627,6.49,133.68,133.66,3.61617956]
[1719099298825,6.49,133.69,133.66,111.09767956]
[1719099299028,6.49,133.69,133.67,7.481]
[1719099299215,6.49,133.69,133.66,103.61617956]
[1719099299216,20.0,133.7,133.66,3.61617956]
[1719099299419,7.48,133.69,133.66,3.61617956]
[1719099299642,6.49,133.67,133.66,3.61617956]
[1719099300018,13.9711,133.67,133.66,3.61617956]
[1719099300218,0.17,133.7,133.66,3.61617956]
[1719099300437,6.49,133.67,133.66,3.61617956]
[1719099302516,13.9711,133.67,133.66,3.61617956]
[1719099302946,6.49,133.67,133.66,3.61617956]
[1719099304054,20.0,133.71,133.66,3.61617956]
[1719099304220,6.49,133.67,133.66,3.61617956]
[1719099304420,6.49,133.67,133.66,2.50247956]
[1719099305344,7.4795,133.7,133.66,2.50247956]
[1719099305525,6.49,133.67,133.66,2.50247956]
[1719099307438,7.48,133.69,133.66,2.50247956]
[1719099307755,6.49,133.67,133.66,2.50247956]
[1719099310045,13.9711,133.67,133.66,2.50247956]
[1719099312850,6.49,133.67,133.66,2.50247956]
[1719099313456,13.9711,133.67,133.66,2.50247956]
[1719099315037,20.0,133.71,133.66,2.50247956]
[1719099315353,6.49,133.67,133.66,2.50247956]
[1719099315857,6.49,133.67,133.66,2.00247956]
[1719099316452,7.4801,133.69,133.66,2.00247956]
[1719099316835,6.49,133.67,133.66,2.00247956]
[1719099318541,13.9711,133.67,133.66,2.00247956]
[1719099318854,59.3111,133.67,133.66,2.00247956]
[1719099319636,66.8091,133.67,133.66,2.00247956]
[1719099320757,59.3111,133.67,133.66,2.00247956]
[1719099321154,59.3111,133.67,133.63,0.05375]
[1719099321155,6.49,133.67,133.63,0.05375]
[1719099321361,39.9327,133.64,133.63,0.05375]
[1719099321545,78.8096,133.64,133.63,0.05375]
[1719099321750,92.3076,133.64,133.63,0.05375]
[1719099322358,84.8096,133.64,133.63,0.05375]
[1719099322663,40.1427,133.64,133.63,0.05375]
[1719099323241,85.1427,133.64,133.63,0.05375]
[1719099323442,91.6327,133.64,133.63,0.05375]
[1719099324055,7.4844,133.61,133.6,6.0]
[1719099324358,13.9744,133.61,133.6,6.0]
[1719099324562,6.49,133.61,133.6,6.0]
[1719099324779,13.9744,133.61,133.6,6.0]
[1719099325534,14.1444,133.61,133.6,6.0]
[1719099326159,6.49,133.61,133.6,6.0]
[1719099326743,33.498,133.64,133.6,6.0]
[1719099326945,7.4825,133.65,133.6,113.4846]
[1719099327145,6.49,133.63,133.6,113.4846]
[1719099327447,6.49,133.63,133.61,7.4844]
[1719099327644,6.49,133.64,133.6,113.4847]
[1719099327860,6.49,133.64,133.61,7.4844]
[1719099328163,6.49,133.63,133.6,113.4849]
[1719099329447,6.49,133.63,133.61,7.4844]
[1719099329761,6.49,133.64,133.61,7.4844]
[1719099329956,6.49,133.64,133.6,113.4848]
[1719099330156,6.49,133.63,133.6,113.4848]
[1719099330978,6.49,133.63,133.6,106.0]
[1719099331178,6.49,133.63,133.6,113.485]
[1719099331367,7.4824,133.65,133.6,113.485]
[1719099331566,6.49,133.63,133.6,113.485]
[1719099331863,6.49,133.64,133.6,113.485]
[1719099332063,6.49,133.64,133.61,7.4843]
[1719099332470,6.49,133.65,133.62,107.4838]
[1719099333466,15.2585881,133.68,133.63,7.4831]
[1719099333673,6.49,133.65,133.63,7.4831]
[1719099334074,7.4811,133.67,133.63,7.4831]
[1719099334256,6.49,133.65,133.63,7.4831]
[1719099334763,6.49,133.65,133.62,107.4836]
[1719099335079,7.4802,133.69,133.64,100.0]
[1719099335282,6.49,133.68,133.64,123.9106]
[1719099335580,6.49,133.68,133.64,122.4966]
[1719099335762,6.49,133.68,133.64,129.9791]
[1719099336585,15.55613275,133.72,133.66,100.0]
[1719099336878,6.49,133.69,133.66,107.4812]
[1719099337678,6.49,133.69,133.66,100.0]
[1719099339588,6.49,133.68,133.66,100.0]
[1719099340257,6.49,133.68,133.66,107.4816]
[1719099340576,6.49,133.7,133.66,107.4816]
[1719099340878,7.4785,133.72,133.67,12.58931204]
[1719099341084,6.49,133.71,133.67,12.58931204]
[1719099341276,6.49,133.71,133.68,105.12160053]
[1719099341877,13.9688,133.71,133.68,105.12160053]
[1719099342761,13.9688,133.71,133.68,100.0]
[1719099353830,6.49,133.71,133.68,100.0]
[1719099354316,13.9685,133.72,133.68,100.0]
[1719099354615,6.49,133.71,133.68,100.0]
[1719099357513,3.99,133.71,133.68,100.0]
[1719099360502,7.479,133.71,133.66,100.0]
[1719099360706,13.969,133.71,133.66,113.9712]
[1719099360903,7.479,133.71,133.66,107.4812]
[1719099361109,13.9685,133.72,133.67,7.4809]
[1719099361505,13.9685,133.72,133.68,100.0]
[1719099361714,7.4785,133.72,133.68,100.0]
[1719099364230,7.4788,133.71,133.68,100.0]
[1719099365702,26.47567017,133.74,133.68,107.4803]
[1719099365928,13.9686,133.72,133.68,107.4805]
[1719099366112,13.9686,133.72,133.68,100.0]
[1719099368198,13.9686,133.72,133.68,107.4803]
[1719099368829,7.4786,133.72,133.68,107.4803]
[1719099369014,13.9686,133.72,133.68,107.4803]
[1719099370532,6.49,133.72,133.68,107.4803]
[1719099374603,6.49,133.72,133.69,7.4797]
[1719099377528,6.49,133.72,133.68,107.4802]
[1719099377715,6.49,133.7,133.67,7.4808]
[1719099377932,6.49,133.69,133.67,7.4808]
[1719099378508,6.4618638,133.69,133.67,7.4808]
[1719099378715,6.49,133.69,133.67,7.4808]
[1719099380630,6.49,133.68,133.67,7.4808]
[1719099380937,7.4806,133.68,133.64,22.4966]
[1719099381139,15.26669605,133.7,133.65,7.4822]
[1719099381437,0.34,133.69,133.66,7.4816]
[1719099381635,6.49,133.67,133.66,7.4816]
[1719099381837,6.49,133.67,133.65,7.482]
[1719099382345,6.49,133.67,133.64,22.4966]
[1719099382523,0.34,133.69,133.64,22.4966]
[1719099382841,6.49,133.67,133.64,29.979]
[1719099383216,7.481,133.68,133.62,100.0]
[1719099383417,6.49,133.66,133.63,7.4832]
[1719099383623,6.49,133.66,133.62,100.0]
[1719099383830,6.49,133.66,133.63,7.483]
[1719099384436,6.49,133.66,133.62,7.4837]
[1719099385372,6.49,133.65,133.62,7.4837]
[1719099387038,6.49,133.63,133.6,6.0]
[1719099387374,6.49,133.61,133.6,6.0]
[1719099388147,6.49,133.62,133.6,6.0]
[1719099388744,6.49,133.61,133.6,6.0]
[1719099392667,7.484,133.62,133.6,6.0]
[1719099392857,13.9744,133.61,133.6,6.0]
[1719099394443,6.49,133.61,133.6,6.0]
[1719099399249,6.49,133.62,133.6,6.0]
[1719099399455,7.483,133.64,133.6,6.0]
[1719099399654,6.49,133.62,133.6,6.0]
[1719099401456,7.4834,133.63,133.6,6.0]
[1719099401756,6.49,133.62,133.6,6.0]
[1719099404770,6.49,133.62,133.6,106.0]
[1719099404973,7.483,133.64,133.6,106.0]
[1719099405151,6.49,133.63,133.6,106.0]
[1719099406277,7.483,133.64,133.6,106.0]
[1719099406477,6.49,133.63,133.6,106.0]
[1719099408681,13.9733,133.63,133.6,106.0]
[1719099410187,6.49,133.62,133.6,106.0]
[1719099413179,13.9739,133.62,133.6,6.0]
[1719099417076,7.79118173,133.65,133.6,6.0]
[1719099417265,13.9744,133.61,133.6,6.0]
[1719099420489,6.49,133.61,133.6,6.0]
[1719099421073,13.9744,133.61,133.6,6.0]
[1719099421871,6.49,133.61,133.6,6.0]
[1719099422585,13.9744,133.61,133.6,6.0]
[1719099423091,6.49,133.61,133.6,6.0]
[1719099424857,13.9744,133.61,133.6,6.0]
[1719099426585,63.9263,133.61,133.6,0.65951674]
[1719099426786,108.9263,133.61,133.6,0.65951674]
[1719099428172,33.6955,133.6,133.59,0.8732376]
[1719099428378,7.4881,133.55,133.51,22.8788]
[1719099428694,13.9781,133.55,133.51,15.3888]
[1719099429277,15.29490723,133.58,133.49,15.22314486]
[1719099429278,13.979,133.53,133.49,15.22314486]
[1719099429483,15.29490723,133.58,133.49,15.22314486]
[1719099429484,13.9799,133.52,133.49,9.02144486]
[1719099429778,7.4906,133.5,133.49,9.02144486]
[1719099429985,7.4894,133.53,133.49,9.02144486]
[1719099430184,6.49,133.51,133.49,9.02144486]
[1719099430378,6.49,133.5,133.49,9.02144486]
[1719099431095,6.49,133.52,133.49,9.02144486]
[1719099431281,13.9795,133.52,133.49,9.02144486]
[1719099431472,6.49,133.52,133.49,9.02144486]
[1719099431692,16.062,133.55,133.49,109.02144486]
[1719099431879,6.49,133.51,133.49,109.02144486]
[1719099432078,6.49,133.52,133.49,109.02144486]
[1719099432290,6.49,133.52,133.49,9.02144486]
[1719099433391,7.4894,133.53,133.49,109.02144486]
[1719099433696,6.49,133.52,133.49,109.02144486]
[1719099433899,6.49,133.53,133.49,109.02144486]
[1719099434577,13.9796,133.52,133.49,9.02144486]
[1719099435500,6.49,133.52,133.49,9.02144486]
[1719099436277,13.9801,133.51,133.49,9.02144486]
[1719099436499,7.4901,133.51,133.49,9.02144486]
[1719099436676,13.9806,133.5,133.49,9.02144486]
[1719099436876,0.17,133.55,133.49,9.02144486]
[1719099436877,7.668,133.55,133.49,9.02144486]
[1719099437083,6.49,133.5,133.49,9.02144486]
[1719099437677,7.498,133.52,133.49,9.02144486]
[1719099437903,6.49,133.5,133.49,9.02144486]
[1719099438110,6.49,133.51,133.49,9.02144486]
[1719099439085,13.9801,133.51,133.49,9.02144486]
[1719099439804,6.49,133.51,133.49,9.02144486]
[1719099440299,15.28440913,133.53,133.49,9.02144486]
[1719099440606,6.49,133.51,133.49,9.02144486]
[1719099441100,7.79530913,133.53,133.49,116.51244486]
[1719099441400,6.49,133.53,133.49,116.51244486]
[1719099441619,7.4879,133.55,133.5,7.4905]
[1719099441812,6.49,133.54,133.51,100.0]
[1719099442480,6.49,133.54,133.51,107.49]
[1719099443421,7.4895,133.52,133.51,100.0]
[1719099443730,6.49,133.54,133.51,100.0]
[1719099444522,7.4886,133.54,133.5,100.0]
[1719099444707,13.9786,133.54,133.5,100.0]
[1719099445406,13.9786,133.54,133.49,23.00204486]
[1719099446022,6.49,133.53,133.49,16.51204486]
[1719099447437,6.49,133.52,133.49,9.02144486]
[1719099449429,6.49,133.52,133.49,16.51254486]
[1719099450425,18.7199,133.55,133.49,9.02144486]
[1719099450626,6.49,133.5,133.49,9.02144486]
[1719099451229,7.4899,133.52,133.49,9.02144486]
[1719099451528,6.49,133.5,133.49,9.02144486]
[1719099451922,7.79552174,133.52,133.49,9.02144486]
[1719099452135,15.52724563,133.56,133.49,9.02144486]
[1719099452322,6.49,133.52,133.49,9.02144486]
[1719099453028,13.9795,133.52,133.49,9.02144486]
[1719099453214,6.49,133.52,133.49,9.02144486]
[1719099453419,7.4892,133.53,133.49,9.02144486]
[1719099453619,6.49,133.52,133.49,9.02144486]
[1719099453824,13.9795,133.52,133.49,9.02144486]
[1719099454234,6.49,133.52,133.49,16.51254486]
[1719099454521,6.49,133.52,133.49,16.01254486]
[1719099454933,7.7977693,133.54,133.5,100.0]
[1719099455131,6.49,133.55,133.5,106.49]
[1719099455439,6.49,133.56,133.52,107.489]
[1719099455618,7.79826764,133.58,133.52,106.49]
[1719099455823,6.49,133.57,133.54,7.4883]
[1719099456014,7.79826764,133.58,133.54,7.4883]
[1719099456215,14.28826764,133.58,133.55,7.4877]
[1719099456421,6.49,133.58,133.54,107.4881]
[1719099457125,7.4856,133.59,133.54,107.4881]
[1719099457325,6.49,133.58,133.54,107.4881]
[1719099457738,6.49,133.57,133.54,107.4881]
[1719099460548,6.49,133.57,133.55,7.4876]
[1719099460751,6.49,133.58,133.55,7.4876]
[1719099461542,15.28276501,133.6,133.55,7.4876]
[1719099461735,6.49,133.58,133.55,7.4876]
[1719099462626,6.49,133.57,133.55,7.4876]
[1719099463836,6.49,133.57,133.54,7.488]
[1719099464046,6.49,133.56,133.54,7.488]
[1719099465747,6.49,133.56,133.55,7.4878]
[1719099467733,15.29566501,133.6,133.56,7.4871]
[1719099468053,6.49,133.57,133.55,7.4876]
[1719099468629,22.78076501,133.6,133.55,7.4876]
[1719099468825,6.49,133.57,133.55,7.4876]
[1719099469229,22.78076501,133.6,133.55,7.4876]
[1719099469430,6.49,133.57,133.55,7.4876]
[1719099470040,22.78076501,133.6,133.55,7.4876]
[1719099470256,6.49,133.57,133.55,7.4876]
[1719099471556,6.49,133.57,133.54,7.4881]
[1719099472626,6.49,133.57,133.53,7.4887]
[1719099472855,6.49,133.56,133.53,7.4887]
[1719099473233,6.49,133.56,133.54,7.4882]
[1719099473554,6.49,133.57,133.54,7.4882]
[1719099475046,6.49,133.56,133.53,7.4887]
[1719099478456,6.49,133.54,133.51,7.4896]
[1719099478757,6.49,133.53,133.5,7.4902]
[1719099479263,6.49,133.53,133.51,7.49]
[1719099480133,15.28918878,133.56,133.51,7.49]
[1719099480335,6.49,133.54,133.51,7.49]
[1719099480637,6.49,133.54,133.49,108.52144486]
[1719099480846,6.49,133.54,133.51,7.4897]
[1719099482257,6.49,133.53,133.51,7.4897]
[1719099482563,6.49,133.53,133.49,116.01234486]
[1719099482861,6.49,133.53,133.49,16.01234486]
[1719099483037,6.49,133.52,133.49,16.01234486]
[1719099483236,6.49,133.53,133.49,16.01234486]
[1719099483438,7.4879,133.55,133.5,7.4906]
[1719099483650,6.49,133.53,133.5,7.4906]
[1719099483854,6.49,133.53,133.49,16.01234486]
[1719099484037,6.49,133.52,133.49,16.01234486]
[1719099484353,7.80178878,133.56,133.49,8.52144486]
[1719099484354,6.49,133.51,133.49,8.52144486]
[1719099485366,6.49,133.51,133.49,16.01254486]
[1719099486159,6.49,133.52,133.49,16.01254486]
[1719099487057,7.488,133.55,133.5,7.4905]
[1719099487244,6.49,133.53,133.5,7.4905]
[1719099488559,7.4897,133.52,133.49,108.52144486]
[1719099488752,6.49,133.52,133.49,8.52144486]
[1719099488953,7.4885,133.54,133.49,16.01254486]
[1719099489157,65.21150104,133.56,133.5,7.4906]
[1719099489158,6.49,133.53,133.5,7.4906]
[1719099489766,6.49,133.53,133.49,116.01234486]
[1719099490543,6.49,133.53,133.5,7.4906]
[1719099491163,6.49,133.53,133.49,116.01234486]
[1719099492464,6.49,133.54,133.51,107.49]
[1719099492761,6.49,133.54,133.49,108.52144486]
[1719099493073,6.49,133.52,133.49,8.52144486]
[1719099493256,6.49,133.51,133.49,8.52144486]
[1719099494345,6.49,133.5,133.49,8.52144486]
[1719099495564,6.49,133.51,133.49,16.01254486]
[1719099495764,15.29143666,133.54,133.49,16.01254486]
[1719099495954,6.49,133.52,133.49,8.52144486]
[1719099496157,6.49,133.52,133.49,16.01224486]
[1719099496875,6.49,133.52,133.49,8.52144486]
[1719099497650,6.49,133.51,133.49,8.52144486]
[1719099498055,6.49,133.52,133.49,16.01244486]
[1719099498450,6.49,133.52,133.49,8.52144486]
[1719099498646,6.49,133.5,133.49,8.52144486]
[1719099499771,6.49,133.51,133.49,8.52144486]
[1719099500769,6.49,133.51,133.49,16.01254486]
[1719099500981,6.49,133.51,133.49,8.52144486]
[1719099502971,6.49,133.51,133.49,16.01254486]
[1719099503270,6.49,133.53,133.49,16.01234486]
[1719099503483,6.49,133.53,133.5,7.4906]
[1719099504779,6.49,133.53,133.49,16.01234486]
[1719099508174,7.4879,133.55,133.51,100.0]
[1719099508373,13.9779,133.55,133.51,100.0]
[1719099509576,7.4893,133.53,133.51,100.0]
[1719099509781,6.49,133.55,133.51,100.0]
[1719099509975,13.9779,133.55,133.51,100.0]
[1719099510858,7.4875,133.56,133.51,107.49]
[1719099511079,6.49,133.54,133.51,100.0]
[1719099511273,7.4874,133.56,133.51,107.4899]
[1719099511459,6.49,133.54,133.51,100.0]
[1719099511659,6.49,133.54,133.51,107.49]
[1719099513281,7.4875,133.56,133.51,107.49]
[1719099513469,6.49,133.54,133.51,107.49]
[1719099515683,6.49,133.54,133.52,7.4891]
[1719099515872,6.49,133.55,133.53,7.4888]
[1719099516386,6.49,133.55,133.52,7.4894]
[1719099517086,6.49,133.55,133.53,107.4888]
[1719099517570,6.49,133.55,133.53,100.0]
[1719099520765,6.49,133.55,133.51,7.49]
[1719099520974,6.49,133.53,133.5,124.1387]
[1719099521386,6.49,133.52,133.5,116.6484]
[1719099521573,6.49,133.51,133.5,100.0]
[1719099521769,6.49,133.51,133.49,16.01254486]
[1719099522366,6.49,133.51,133.49,8.52144486]
[1719099523664,6.49,133.51,133.49,16.01234486]
[1719099524389,6.49,133.51,133.49,8.52144486]
[1719099524563,7.4886,133.54,133.49,16.01244486]
[1719099524765,6.49,133.51,133.49,16.01244486]
[1719099525473,28.02509419,133.55,133.5,7.4906]
[1719099525667,6.49,133.52,133.49,16.01224486]
[1719099527968,6.49,133.52,133.5,7.4905]
[1719099528482,6.49,133.52,133.49,16.01244486]
[1719099536991,12.73630705,133.55,133.51,7.49]
[1719099537191,6.49,133.54,133.51,7.49]
[1719099537580,6.49,133.54,133.5,107.4903]
[1719099538769,6.49,133.53,133.5,107.4903]
[1719099539398,7.4874,133.56,133.51,7.4899]
[1719099539597,6.49,133.53,133.51,7.4899]
[1719099539986,6.49,133.54,133.51,7.4899]
[1719099540697,6.49,133.54,133.52,100.0]
[1719099541375,12.74179409,133.57,133.52,100.0]
[1719099541582,6.49,133.55,133.53,7.4887]
[1719099543288,6.49,133.55,133.53,7.4887]
[1719099543490,28.03369955,133.58,133.53,7.4887]
[1719099543680,6.49,133.55,133.53,7.4887]
[1719099544077,6.49,133.56,133.53,7.4887]
[1719099544999,6.49,133.55,133.52,107.4892]
[1719099545403,6.49,133.55,133.53,7.4889]
[1719099549688,6.49,133.54,133.53,7.4889]
[1719099550201,6.49,133.54,133.52,107.4892]
[1719099553990,6.49,133.54,133.53,7.4889]
[1719099554191,6.49,133.55,133.53,7.4889]
[1719099556885,28.03350194,133.58,133.49,16.01244486]
[1719099556886,13.9787,133.54,133.49,16.01244486]
[1719099557080,6.49,133.51,133.49,8.52144486]
[1719099558480,6.49,133.5,133.49,8.52144486]
[1719099561684,34.3206,133.5,133.49,8.52144486]
[1719099563793,20.0,133.5,133.49,8.52144486]
[1719099564116,26.49,133.5,133.49,8.52144486]
[1719099564296,34.1506,133.5,133.49,8.52144486]
[1719099564500,26.49,133.5,133.49,8.52144486]
[1719099565020,33.9806,133.5,133.49,8.52144486]
[1719099565404,41.4786,133.5,133.49,8.52144486]
[1719099566212,33.9806,133.5,133.49,8.52144486]
[1719099566410,41.4786,133.5,133.49,8.52144486]
[1719099567631,26.49,133.5,133.49,8.52144486]
[1719099568485,33.9806,133.5,133.49,8.52144486]
[1719099568685,26.49,133.5,133.49,8.52144486]
[1719099569491,33.9806,133.5,133.49,8.52144486]
[1719099569693,26.49,133.5,133.49,8.52144486]
[1719099570313,20.0,133.5,133.49,8.52144486]
[1719099570611,26.49,133.5,133.49,8.52144486]
[1719099570811,6.49,133.5,133.49,8.52144486]
[1719099573517,13.9806,133.5,133.49,8.52144486]
[1719099573917,6.49,133.5,133.49,8.52144486]
[1719099575218,13.9806,133.5,133.49,8.52144486]
[1719099575602,6.49,133.5,133.49,8.52144486]
[1719099577223,13.9806,133.5,133.49,8.52144486]
[1719099579305,33.9806,133.5,133.49,8.52144486]
[1719099581012,26.49,133.5,133.49,8.52144486]
[1719099581525,33.9806,133.5,133.49,8.52144486]
[1719099588940,40.6406,133.5,133.49,8.52144486]
[1719099589931,34.1506,133.5,133.49,8.52144486]
[1719099591031,82.9761,133.5,133.49,2.12279359]
[1719099591328,128.1461,133.5,133.49,2.12279359]
[1719099591508,135.6441,133.5,133.49,2.12279359]
[1719099591712,14.9897,133.48,133.45,0.8732376]
[1719099591925,6.56,133.46,133.45,0.8732376]
[1719099597439,7.492,133.48,133.45,0.8732376]